fUSD/lending_fUSD_20260529
["ID","MTS","AMOUNT","RATE_DAILY","PERIOD"]
[423271668,1780009859000,-635.67862798,0.00031305,7]
[423271672,1780009859000,-561.83008301,0.00031305,2]
[423271673,1780009859000,-405.99891097,0.00031305,7]
[423271677,1780009859000,-614.98244152,0.00031305,7]
[423271686,1780009859000,-166.15519754,0.00031311,7]
[423271693,1780009859000,-318.65504121,0.00031311,7]
[423271685,1780009859000,-713.24471755,0.00031308,7]
[423271683,1780009859000,-308.87526467,0.00031305,7]
[423271684,1780009859000,-1262.11957207,0.00031305,7]
[423271690,1780009859000,-822.75007597,0.00031311,7]
[423271701,1780009859000,-708.05498156,0.00031311,7]
[423271702,1780009859000,-723.05122233,0.00031311,7]
[423271691,1780009859000,-644.95419456,0.00031311,7]
[423271700,1780009859000,-330.84817374,0.00031311,7]
[423271689,1780009859000,-423.02136146,0.00031311,7]
[423271692,1780009859000,-342.65278809,0.00031311,7]
[423271694,1780009859000,-750.57187751,0.00031311,7]
[423271696,1780009859000,-308.46677127,0.00031311,7]
[423271669,1780009859000,-505.85854151,0.00031305,7]
[423271682,1780009859000,-726.45107127,0.00031305,7]
[423271675,1780009859000,-402.59769647,0.00031305,7]
[423271640,1780009859000,-304.40364634,0.00031305,7]
[423271667,1780009859000,-762.42166283,0.00031305,7]
[423271637,1780009859000,-212.98839523,0.00031305,7]
[423271697,1780009859000,-559.40728782,0.00031311,7]
[423271638,1780009859000,-441.13346657,0.00031305,7]
[423271641,1780009859000,-587.47347321,0.00031305,7]
[423271639,1780009859000,-486.66931232,0.00031305,7]
[423271642,1780009859000,-310.32763849,0.00031305,7]
[423271644,1780009859000,-796.0211009,0.00031305,7]
[423271643,1780009859000,-584.1124809,0.00031305,7]
[423271645,1780009859000,-447.73305079,0.00031305,7]
[423271647,1780009859000,-333.65248365,0.00031305,7]
[423271646,1780009859000,-708.89478295,0.00031305,7]
[423271650,1780009859000,-523.06369564,0.00031305,7]
[423271649,1780009859000,-469.72779996,0.00031305,2]
[423271648,1780009859000,-413.50155932,0.00031305,2]
[423271674,1780009859000,-155.23384509,0.00031305,7]
[423271652,1780009859000,-160.38325504,0.00031305,7]
[423271661,1780009859000,-306.44453877,0.00031305,7]
[423271654,1780009859000,-160.38324698,0.00031305,7]
[423271656,1780009859000,-160.38004696,0.00031305,7]
[423271660,1780009859000,-160.38003132,0.00031305,7]
[423271657,1780009859000,-301.28487008,0.00031305,7]
[423271662,1780009859000,-160.38004664,0.00031305,7]
[423271655,1780009859000,-160.4520656,0.00031305,7]
[423271653,1780009859000,-550.94915196,0.00031305,7]
[423271659,1780009859000,-160.3832481,0.00031305,7]
[423271658,1780009859000,-168.90546387,0.00031305,7]
[423271666,1780009859000,-708.37654119,0.00031305,7]
[423271663,1780009859000,-453.03871415,0.00031305,7]
[423271664,1780009859000,-340.47325439,0.00031305,7]
[423271665,1780009859000,-633.44420031,0.00031305,7]
[423271651,1780009859000,-161.82578104,0.00031305,7]
[423271695,1780009859000,-501.21687962,0.00031311,7]
[423271726,1780009859000,-651.12259823,0.00031311,7]
[423271698,1780009859000,-164.90161239,0.00031311,7]
[423271730,1780009859000,-617.68495147,0.00031311,7]
[423271737,1780009859000,-745.31829574,0.00031311,7]
[423271733,1780009859000,-708.96969352,0.00031311,7]
[423271732,1780009859000,-561.79349655,0.00031311,7]
[423271735,1780009859000,-462.63677611,0.00031311,2]
[423271739,1780009859000,-821.9102682,0.00031311,7]
[423271748,1780009859000,-1135.0,0.00031376,120]
[423271744,1780009859000,-229.2696506,0.00031317,7]
[423271749,1780009859000,-1693.21818341,0.00031376,7]
[423271746,1780009859000,-152.0,0.00031364,16]
[423271753,1780009859000,-455.8020216,0.000314,120]
[423271755,1780009859000,-409.0,0.00031401,120]
[423271699,1780009859000,-301.46489877,0.00031311,7]
[423271751,1780009859000,-177.0,0.00031389,120]
[423271750,1780009859000,-150.0,0.00031383,22]
[423271745,1780009859000,-1904.0,0.00031331,120]
[423271752,1780009859000,-681.0,0.00031397,120]
[423271754,1780009859000,-337.73819444,0.000314,30]
[423271757,1780009859000,-1410.4,0.00031449,120]
[423271758,1780009859000,-2000.0,0.000315,2]
[423271756,1780009859000,-344.0,0.00031444,120]
[423271760,1780009859000,-500.0,0.00031507,7]
[423271762,1780009859000,-958.84,0.00031612,7]
[423271763,1780009859000,-1356.44,0.00031612,7]
[423271765,1780009859000,-1395.31,0.00031631,2]
[423271761,1780009859000,-1000.0,0.00031558,14]
[423271764,1780009859000,-1000.0,0.00031624,14]
[423271759,1780009859000,-483.0,0.00031507,120]
[423271766,1780009859000,-207.0,0.00031666,120]
[423271738,1780009859000,-636.04054657,0.00031311,7]
[423271736,1780009859000,-600.4154799,0.00031311,7]
[423271747,1780009859000,-152.0,0.00031364,4]
[423271743,1780009859000,-608.7808705,0.00031312,7]
[423271740,1780009859000,-798.39020024,0.00031311,7]
[423271715,1780009859000,-869.25178023,0.00031311,7]
[423271713,1780009859000,-163.9762278,0.00031311,7]
[423271712,1780009859000,-699.78087018,0.00031311,7]
[423271714,1780009859000,-829.22723365,0.00031311,7]
[423271703,1780009859000,-528.93722353,0.00031311,7]
[423271705,1780009859000,-610.58349879,0.00031311,7]
[423271710,1780009859000,-635.04399326,0.00031311,7]
[423271707,1780009859000,-788.09455719,0.00031311,7]
[423271711,1780009859000,-634.18606769,0.00031311,7]
[423271708,1780009859000,-808.5140038,0.00031311,7]
[423271706,1780009859000,-681.25621353,0.00031311,7]
[423271709,1780009859000,-760.87821464,0.00031311,7]
[423271716,1780009859000,-601.65089479,0.00031311,7]
[423271718,1780009859000,-173.00349177,0.00031311,7]
[423271704,1780009859000,-340.56688869,0.00031311,7]
[423271727,1780009859000,-584.83961055,0.00031311,7]
[423271734,1780009859000,-647.78415454,0.00031311,7]
[423271741,1780009859000,-457.29582672,0.00031311,7]
[423271742,1780009859000,-660.09473194,0.00031312,7]
[423271731,1780009859000,-660.14665903,0.00031311,7]
[423271720,1780009859000,-707.32256884,0.00031311,7]
[423271725,1780009859000,-554.21621009,0.00031311,7]
[423271729,1780009859000,-613.46968989,0.00031311,7]
[423271724,1780009859000,-166.34412627,0.00031311,7]
[423271717,1780009859000,-165.07587125,0.00031311,7]
[423271728,1780009859000,-611.71571114,0.00031311,7]
[423271721,1780009859000,-323.83434315,0.00031311,7]
[423271719,1780009859000,-677.20816906,0.00031311,7]
[423271722,1780009859000,-491.23068511,0.00031311,7]
[423271723,1780009859000,-163.24722164,0.00031311,7]
[423271809,1780009860000,-886.11847869,0.00031898,7]
[423271821,1780009860000,-806.1927432,0.00031904,7]
[423271810,1780009860000,-802.4518844,0.00031898,7]
[423271807,1780009860000,-1303.56452909,0.00031894,7]
[423271808,1780009860000,-1714.99559996,0.00031894,7]
[423271799,1780009860000,-150.0,0.00031858,2]
[423271805,1780009860000,-885.91966218,0.00031894,7]
[423271806,1780009860000,-1576.46367566,0.00031894,7]
[423271803,1780009860000,-942.4328664,0.00031891,7]
[423271804,1780009860000,-830.02864953,0.00031891,2]
[423271802,1780009860000,-728.65,0.00031879,7]
[423271811,1780009860000,-905.14823891,0.00031898,7]
[423271797,1780009860000,-2566.0,0.00031798,30]
[423271820,1780009860000,-891.55589694,0.00031901,7]
[423271818,1780009860000,-150.0,0.000319,2]
[423271813,1780009860000,-780.26320779,0.00031898,7]
[423271817,1780009860000,-150.0,0.000319,2]
[423271816,1780009860000,-1542.91,0.000319,14]
[423271814,1780009860000,-1001.23507552,0.00031898,7]
[423271815,1780009860000,-1577.64946509,0.00031898,7]
[423271819,1780009860000,-150.0,0.000319,2]
[423271822,1780009860000,-885.06872695,0.00031904,7]
[423271827,1780009860000,-752.06361849,0.00031904,7]
[423271826,1780009860000,-874.72608773,0.00031904,7]
[423271824,1780009860000,-951.0977683,0.00031904,7]
[423271825,1780009860000,-793.80499158,0.00031904,7]
[423271801,1780009860000,-152.0,0.00031878,17]
[423271823,1780009860000,-851.57026691,0.00031904,7]
[423271812,1780009860000,-768.72805189,0.00031898,7]
[423271800,1780009860000,-188.34675647,0.00031868,2]
[423271834,1780009860000,-931.64786968,0.00031904,7]
[423271796,1780009860000,-4829.0,0.00031798,30]
[423271829,1780009860000,-764.64463893,0.00031904,7]
[423271767,1780009860000,-250.0,0.00031676,7]
[423271768,1780009860000,-250.0,0.00031676,7]
[423271769,1780009860000,-250.0,0.00031676,7]
[423271770,1780009860000,-250.0,0.00031676,7]
[423271781,1780009860000,-728.65,0.00031718,7]
[423271773,1780009860000,-200.0,0.00031677,15]
[423271779,1780009860000,-200.0,0.00031677,2]
[423271782,1780009860000,-1000.0,0.00031729,14]
[423271771,1780009860000,-200.0,0.00031677,30]
[423271776,1780009860000,-200.0,0.00031677,2]
[423271780,1780009860000,-201.20894484,0.00031677,2]
[423271778,1780009860000,-200.0,0.00031677,2]
[423271772,1780009860000,-200.0,0.00031677,20]
[423271798,1780009860000,-560.0,0.00031798,30]
[423271774,1780009860000,-200.0,0.00031677,7]
[423271777,1780009860000,-200.0,0.00031677,2]
[423271784,1780009860000,-1000.0,0.00031758,14]
[423271794,1780009860000,-1281.0,0.00031798,30]
[423271788,1780009860000,-2518.0,0.00031767,30]
[423271783,1780009860000,-1000.0,0.00031755,14]
[423271785,1780009860000,-1331.0,0.00031767,30]
[423271795,1780009860000,-1136.0,0.00031798,30]
[423271786,1780009860000,-1880.0,0.00031767,30]
[423271793,1780009860000,-2359.0,0.00031798,30]
[423271792,1780009860000,-1003.0,0.00031798,30]
[423271790,1780009860000,-1072.0,0.00031767,30]
[423271791,1780009860000,-927.1,0.00031781,120]
[423271789,1780009860000,-3186.0,0.00031767,30]
[423271787,1780009860000,-999.0,0.00031767,30]
[423271775,1780009860000,-200.0,0.00031677,3]
[423271831,1780009860000,-772.10618934,0.00031904,7]
[423271849,1780009860000,-1191.41871834,0.00032,120]
[423271828,1780009860000,-884.15321105,0.00031904,7]
[423271859,1780009860000,-211.6686259,0.00032,120]
[423271861,1780009860000,-216.53393623,0.00032,120]
[423271866,1780009860000,-169.66508247,0.00032,120]
[423271865,1780009860000,-826.39370122,0.00032,120]
[423271867,1780009860000,-206.96246515,0.00032,120]
[423271869,1780009860000,-162.08,0.00032,120]
[423271868,1780009860000,-178.01889043,0.00032,120]
[423271873,1780009860000,-215.50460005,0.00032,30]
[423271876,1780009860000,-160.0,0.00032,30]
[423271877,1780009860000,-325.0,0.00032,5]
[423271881,1780009860000,-200.0,0.00032055,2]
[423271874,1780009860000,-215.50460005,0.00032,7]
[423271879,1780009860000,-728.65,0.0003204,7]
[423271864,1780009860000,-189.19336257,0.00032,120]
[423271883,1780009860000,-1000.0,0.00032085,14]
[423271875,1780009860000,-700.0,0.00032,2]
[423271878,1780009860000,-173.0,0.00032,14]
[423271884,1780009860000,-152.0,0.00032094,3]
[423271880,1780009860000,-1249.12,0.0003204,7]
[423271886,1780009860000,-1000.0,0.00032148,14]
[423271885,1780009860000,-200.0,0.00032148,2]
[423271887,1780009860000,-855.15257883,0.00032157,14]
[423271891,1780009860000,-368.17119805,0.00032222,30]
[423271892,1780009860000,-368.17119805,0.00032222,30]
[423271889,1780009860000,-6512.8,0.0003221,5]
[423271890,1780009860000,-368.17119805,0.00032222,30]
[423271894,1780009860000,-245.0,0.00032266,120]
[423271830,1780009860000,-766.83711236,0.00031904,7]
[423271882,1780009860000,-1000.0,0.00032065,14]
[423271872,1780009860000,-166.0,0.00032,2]
[423271888,1780009860000,-728.65,0.00032201,7]
[423271862,1780009860000,-1160.75068158,0.00032,120]
[423271863,1780009860000,-189.19336258,0.00032,120]
[423271832,1780009860000,-886.2121169,0.00031904,7]
[423271845,1780009860000,-1042.41829441,0.00032,120]
[423271846,1780009860000,-204.54372406,0.00032,120]
[423271833,1780009860000,-809.73019318,0.00031904,7]
[423271837,1780009860000,-825.11841493,0.00031905,7]
[423271841,1780009860000,-174.1227,0.00031987,120]
[423271843,1780009860000,-176.08987293,0.00032,120]
[423271835,1780009860000,-1027.38783525,0.00031904,7]
[423271838,1780009860000,-760.97608813,0.00031905,7]
[423271836,1780009860000,-997.9877503,0.00031904,7]
[423271842,1780009860000,-181.53177158,0.00032,120]
[423271839,1780009860000,-1000.0,0.00031909,14]
[423271840,1780009860000,-2116.52272926,0.0003197,7]
[423271844,1780009860000,-189.48352822,0.00032,120]
[423271893,1780009860000,-668.65185756,0.00032255,2]
[423271847,1780009860000,-177.9628245,0.00032,120]
[423271871,1780009860000,-494.76963178,0.00032,120]
[423271853,1780009860000,-1078.42065239,0.00032,120]
[423271856,1780009860000,-164.0074617,0.00032,120]
[423271857,1780009860000,-195.49900677,0.00032,120]
[423271855,1780009860000,-175.60155629,0.00032,120]
[423271860,1780009860000,-1709.73487436,0.00032,120]
[423271854,1780009860000,-1199.26451675,0.00032,120]
[423271848,1780009860000,-848.44571847,0.00032,120]
[423271858,1780009860000,-1448.63079074,0.00032,120]
[423271850,1780009860000,-225.29487712,0.00032,120]
[423271870,1780009860000,-167.614121,0.00032,120]
[423271851,1780009860000,-591.99122519,0.00032,120]
[423271852,1780009860000,-238.07684447,0.00032,120]
[423271931,1780009861000,-1000.0,0.00032418,32]
[423271926,1780009861000,-194.674,0.000324,26]
[423271927,1780009861000,-200.0,0.000324,6]
[423271921,1780009861000,-1000.0,0.00032375,14]
[423271933,1780009861000,-1000.0,0.00032418,32]
[423271932,1780009861000,-1000.0,0.00032418,32]
[423271929,1780009861000,-1000.0,0.00032418,32]
[423271930,1780009861000,-1000.0,0.00032418,32]
[423271935,1780009861000,-1000.0,0.00032418,32]
[423271934,1780009861000,-1000.0,0.00032418,32]
[423271925,1780009861000,-194.674,0.000324,26]
[423271928,1780009861000,-2000.0,0.000324,7]
[423271946,1780009861000,-500.0,0.00032688,120]
[423271937,1780009861000,-188.34675647,0.00032448,2]
[423271947,1780009861000,-200.0,0.000327,2]
[423271948,1780009861000,-309.0,0.000327,2]
[423271938,1780009861000,-3673.78,0.0003247,14]
[423271939,1780009861000,-1866.1222681,0.000325,7]
[423271944,1780009861000,-10000.0,0.00032638,2]
[423271943,1780009861000,-620.0,0.00032616,120]
[423271940,1780009861000,-1000.0,0.000325,7]
[423271945,1780009861000,-164.0,0.00032653,120]
[423271918,1780009861000,-175.7614632,0.00032349,2]
[423271941,1780009861000,-300.0,0.000325,10]
[423271936,1780009861000,-432.54,0.00032418,32]
[423271919,1780009861000,-187.959878,0.00032349,2]
[423271904,1780009861000,-901.782341,0.00032329,7]
[423271916,1780009861000,-1000.0,0.00032339,14]
[423271942,1780009861000,-927.1,0.00032603,120]
[423271897,1780009861000,-901.782341,0.00032329,7]
[423271896,1780009861000,-901.782341,0.00032329,7]
[423271895,1780009861000,-1033.0,0.00032329,120]
[423271898,1780009861000,-901.782341,0.00032329,7]
[423271910,1780009861000,-901.782341,0.00032329,7]
[423271901,1780009861000,-901.782341,0.00032329,7]
[423271902,1780009861000,-901.782341,0.00032329,7]
[423271909,1780009861000,-901.782341,0.00032329,7]
[423271900,1780009861000,-901.782341,0.00032329,7]
[423271903,1780009861000,-901.782341,0.00032329,7]
[423271899,1780009861000,-901.782341,0.00032329,7]
[423271908,1780009861000,-901.782341,0.00032329,7]
[423271906,1780009861000,-901.782341,0.00032329,7]
[423271907,1780009861000,-901.782341,0.00032329,7]
[423271905,1780009861000,-901.782341,0.00032329,7]
[423271912,1780009861000,-901.782341,0.00032329,7]
[423271914,1780009861000,-901.782341,0.00032329,7]
[423271923,1780009861000,-152.0,0.00032391,18]
[423271922,1780009861000,-162.0,0.00032384,120]
[423271924,1780009861000,-200.0,0.000324,10]
[423271911,1780009861000,-901.782341,0.00032329,7]
[423271915,1780009861000,-901.78235,0.00032329,7]
[423271917,1780009861000,-3928.3847907,0.00032349,2]
[423271913,1780009861000,-901.782341,0.00032329,7]
[423271920,1780009861000,-1000.0,0.00032368,14]
[423271949,1780009861000,-1000.0,0.000327,2]
[423271952,1780009861000,-1331.0,0.00032767,30]
[423271951,1780009861000,-455.8020216,0.00032746,120]
[423271988,1780009861000,-405.54624447,0.0003287,120]
[423271980,1780009861000,-1003.0,0.00032798,30]
[423271987,1780009861000,-2539.82727512,0.00032861,7]
[423271983,1780009861000,-1136.0,0.00032798,30]
[423271979,1780009861000,-1117.97744361,0.00032793,7]
[423271981,1780009861000,-2359.0,0.00032798,30]
[423271982,1780009861000,-1281.0,0.00032798,30]
[423271985,1780009861000,-2566.0,0.00032798,30]
[423271990,1780009861000,-848.94493717,0.00032877,120]
[423271992,1780009861000,-2676.1131658,0.00032877,30]
[423272001,1780009861000,-155.008192,0.00032877,7]
[423272000,1780009861000,-155.008192,0.00032877,7]
[423271993,1780009861000,-155.008192,0.00032877,7]
[423271995,1780009861000,-155.008192,0.00032877,7]
[423271998,1780009861000,-155.008192,0.00032877,7]
[423271991,1780009861000,-958.71,0.00032877,2]
[423271996,1780009861000,-155.008192,0.00032877,7]
[423271994,1780009861000,-155.008192,0.00032877,7]
[423271997,1780009861000,-155.008192,0.00032877,7]
[423271989,1780009861000,-1597.21,0.00032877,120]
[423271999,1780009861000,-155.008192,0.00032877,7]
[423272002,1780009861000,-155.008192,0.00032877,7]
[423272004,1780009861000,-155.008192,0.00032877,7]
[423271950,1780009861000,-2676.1131658,0.0003274,30]
[423272005,1780009861000,-155.008192,0.00032877,7]
[423271984,1780009861000,-4829.0,0.00032798,30]
[423271986,1780009861000,-560.0,0.00032798,30]
[423272003,1780009861000,-155.008192,0.00032877,7]
[423271977,1780009861000,-1232.8654023,0.00032793,7]
[423271978,1780009861000,-1197.58530037,0.00032793,7]
[423271953,1780009861000,-1880.0,0.00032767,30]
[423271960,1780009861000,-1063.10359461,0.00032783,7]
[423271955,1780009861000,-2518.0,0.00032767,30]
[423271954,1780009861000,-999.0,0.00032767,30]
[423271957,1780009861000,-1072.0,0.00032767,30]
[423271959,1780009861000,-1130.91943969,0.0003278,7]
[423271958,1780009861000,-164.0,0.00032777,120]
[423271956,1780009861000,-3186.0,0.00032767,30]
[423271963,1780009861000,-2057.99471995,0.00032783,7]
[423271975,1780009861000,-926.5274272,0.00032793,7]
[423271973,1780009861000,-1049.67130527,0.00032793,7]
[423271961,1780009861000,-1891.75641079,0.00032783,7]
[423271962,1780009861000,-1564.27743491,0.00032783,7]
[423271965,1780009861000,-1063.34217443,0.00032787,7]
[423271964,1780009861000,-911.21138404,0.00032783,2]
[423271966,1780009861000,-962.94226128,0.00032787,7]
[423271967,1780009861000,-922.47366227,0.00032787,7]
[423271968,1780009861000,-1893.17935811,0.00032787,7]
[423271971,1780009861000,-1141.31732196,0.00032793,7]
[423271969,1780009861000,-1069.86707633,0.0003279,7]
[423271970,1780009861000,-967.43129184,0.00032793,7]
[423271972,1780009861000,-952.56598989,0.00032793,7]
[423271976,1780009861000,-1063.45454028,0.00032793,7]
[423271974,1780009861000,-917.57356671,0.00032793,7]
[423272041,1780009862000,-860.0,0.00032877,30]
[423272037,1780009862000,-500.0,0.00032877,30]
[423272039,1780009862000,-500.0,0.00032877,30]
[423272035,1780009862000,-220.0,0.00032877,26]
[423272033,1780009862000,-770.56023,0.00032877,7]
[423272044,1780009862000,-1600.0,0.00032877,30]
[423272036,1780009862000,-2486.0,0.00032877,90]
[423272045,1780009862000,-2000.0,0.00032877,30]
[423272027,1780009862000,-770.56024,0.00032877,7]
[423272038,1780009862000,-500.0,0.00032877,30]
[423272043,1780009862000,-1000.0,0.00032877,120]
[423272054,1780009862000,-500.0,0.00032877,2]
[423272042,1780009862000,-1940.36,0.00032877,30]
[423272046,1780009862000,-1000.0,0.00032877,120]
[423272048,1780009862000,-1000.0,0.00032877,120]
[423272053,1780009862000,-150.0,0.00032877,2]
[423272049,1780009862000,-811.0,0.00032877,30]
[423272050,1780009862000,-1000.0,0.00032877,30]
[423272047,1780009862000,-1000.0,0.00032877,120]
[423272052,1780009862000,-917.29,0.00032877,120]
[423272051,1780009862000,-1622.59,0.00032877,30]
[423272032,1780009862000,-770.56024,0.00032877,7]
[423272055,1780009862000,-501.5283905,0.00032877,2]
[423272040,1780009862000,-500.0,0.00032877,30]
[423272030,1780009862000,-770.56024,0.00032877,7]
[423272018,1780009862000,-770.56024,0.00032877,7]
[423272031,1780009862000,-770.56024,0.00032877,7]
[423272057,1780009862000,-500.0,0.00032877,2]
[423272007,1780009862000,-155.008192,0.00032877,7]
[423272006,1780009862000,-155.008192,0.00032877,7]
[423272009,1780009862000,-155.008192,0.00032877,7]
[423272011,1780009862000,-155.008192,0.00032877,7]
[423272014,1780009862000,-770.56024,0.00032877,7]
[423272010,1780009862000,-155.008192,0.00032877,7]
[423272008,1780009862000,-155.008192,0.00032877,7]
[423272015,1780009862000,-770.56024,0.00032877,7]
[423272013,1780009862000,-350.67,0.00032877,2]
[423272012,1780009862000,-155.008185,0.00032877,7]
[423272016,1780009862000,-770.56024,0.00032877,7]
[423272017,1780009862000,-770.56024,0.00032877,7]
[423272023,1780009862000,-770.56024,0.00032877,7]
[423272022,1780009862000,-770.56024,0.00032877,7]
[423272020,1780009862000,-770.56024,0.00032877,7]
[423272021,1780009862000,-770.56024,0.00032877,7]
[423272024,1780009862000,-770.56024,0.00032877,7]
[423272019,1780009862000,-770.56024,0.00032877,7]
[423272026,1780009862000,-770.56024,0.00032877,7]
[423272025,1780009862000,-770.56024,0.00032877,7]
[423272028,1780009862000,-770.56024,0.00032877,7]
[423272034,1780009862000,-406.29,0.00032877,30]
[423272029,1780009862000,-770.56024,0.00032877,7]
[423272056,1780009862000,-500.0,0.00032877,2]
[423272060,1780009862000,-419.97808507,0.00032877,2]
[423272058,1780009862000,-500.0,0.00032877,2]
[423272087,1780009862000,-848.44571847,0.00033,120]
[423272091,1780009862000,-1199.26451675,0.00033,120]
[423272088,1780009862000,-1191.41871834,0.00033,120]
[423272090,1780009862000,-1078.42065239,0.00033,120]
[423272089,1780009862000,-591.99122519,0.00033,120]
[423272084,1780009862000,-1042.41829441,0.00033,120]
[423272094,1780009862000,-1448.63079074,0.00033,120]
[423272095,1780009862000,-1709.73487436,0.00033,120]
[423272093,1780009862000,-164.0074617,0.00033,120]
[423272104,1780009862000,-167.614121,0.00033,120]
[423272097,1780009862000,-189.19336258,0.00033,120]
[423272103,1780009862000,-128530.90788636,0.00033,2]
[423272100,1780009862000,-176.46753635,0.00033,60]
[423272098,1780009862000,-189.19336257,0.00033,120]
[423272101,1780009862000,-927.69375643,0.00033,30]
[423272102,1780009862000,-479.10493524,0.00033,30]
[423272099,1780009862000,-826.39370122,0.00033,120]
[423272096,1780009862000,-1160.75068158,0.00033,120]
[423272108,1780009862000,-209.03147293,0.00033,30]
[423272105,1780009862000,-494.76963178,0.00033,120]
[423272107,1780009862000,-209.03147293,0.00033,120]
[423272110,1780009862000,-2676.1131658,0.00033014,30]
[423272106,1780009862000,-573.019587,0.00033,14]
[423272085,1780009862000,-204.54372406,0.00033,120]
[423272082,1780009862000,-189.48352822,0.00033,120]
[423272062,1780009862000,-150.0,0.00032877,30]
[423272083,1780009862000,-176.08987293,0.00033,120]
[423272086,1780009862000,-177.9628245,0.00033,120]
[423272059,1780009862000,-500.0,0.00032877,2]
[423272109,1780009862000,-350.0,0.00033014,5]
[423272064,1780009862000,-211.15,0.000329,120]
[423272061,1780009862000,-150.0,0.00032877,30]
[423272063,1780009862000,-500.0,0.00032877,7]
[423272068,1780009862000,-239.94,0.000329,120]
[423272067,1780009862000,-154.21771088,0.000329,120]
[423272066,1780009862000,-431.86,0.000329,120]
[423272069,1780009862000,-708.16,0.000329,120]
[423272071,1780009862000,-220.0,0.00032921,27]
[423272065,1780009862000,-337.85,0.000329,120]
[423272070,1780009862000,-152.0,0.00032905,19]
[423272074,1780009862000,-681.0,0.00032967,120]
[423272075,1780009862000,-409.0,0.00032971,120]
[423272073,1780009862000,-400.0,0.00032955,2]
[423272078,1780009862000,-886.33882625,0.00033,7]
[423272079,1780009862000,-52242.03882096,0.00033,2]
[423272076,1780009862000,-182.026508,0.00032997,14]
[423272077,1780009862000,-76768.3265383,0.00033,5]
[423272081,1780009862000,-181.53177158,0.00033,120]
[423272092,1780009862000,-195.49900677,0.00033,120]
[423272072,1780009862000,-1135.0,0.00032944,120]
[423272080,1780009862000,-300.0,0.00033,120]
[423272155,1780009863000,-150.0,0.00033529,2]
[423272153,1780009863000,-150.0,0.00033524,7]
[423272148,1780009863000,-927.1,0.00033425,120]
[423272143,1780009863000,-150.0,0.00033381,7]
[423272145,1780009863000,-1500.0,0.000334,7]
[423272147,1780009863000,-152.0,0.00033419,20]
[423272142,1780009863000,-150.0,0.00033337,7]
[423272149,1780009863000,-150.0,0.00033425,7]
[423272144,1780009863000,-2676.1131658,0.00033397,30]
[423272154,1780009863000,-182.5407437,0.00033527,2]
[423272146,1780009863000,-904.65528214,0.00033418,100]
[423272156,1780009863000,-150.0,0.00033529,2]
[423272164,1780009863000,-13411.3900462,0.00033529,2]
[423272151,1780009863000,-150.0,0.0003347,7]
[423272159,1780009863000,-150.0,0.00033529,2]
[423272157,1780009863000,-150.0,0.00033529,2]
[423272158,1780009863000,-150.0,0.00033529,2]
[423272152,1780009863000,-150.0,0.00033514,7]
[423272160,1780009863000,-150.0,0.00033529,2]
[423272162,1780009863000,-25209.2601985,0.00033529,2]
[423272163,1780009863000,-821.6558455,0.00033529,2]
[423272172,1780009863000,-893.42,0.00033603,7]
[423272165,1780009863000,-160.0151853,0.00033529,2]
[423272141,1780009863000,-1041.45786591,0.00033333,7]
[423272161,1780009863000,-264.63662102,0.00033529,2]
[423272168,1780009863000,-150.0,0.00033548,7]
[423272150,1780009863000,-150.0,0.00033465,7]
[423272140,1780009863000,-150.0,0.00033332,7]
[423272130,1780009863000,-150.0,0.00033204,7]
[423272136,1780009863000,-355.0,0.00033279,14]
[423272113,1780009863000,-483.0,0.00033082,120]
[423272116,1780009863000,-150.0,0.00033115,7]
[423272111,1780009863000,-188.34675647,0.00033027,2]
[423272170,1780009863000,-150.0,0.00033558,7]
[423272115,1780009863000,-150.0,0.00033115,7]